[Event "*** SCC Grand Prix: Titled Tuesday Blitz"]
[Site "Chess.com"]
[Date "2020.07.14"]
[Round "9"]
[White "SamuelGhimpu2003"]
[Black "Brave_spirit12"]
[Result "0-1"]
[WhiteElo "2588"]
[BlackElo "2511"]
[TimeControl "180+1"]
[EndTime "11:47:46 PDT"]
[Termination "Brave_spirit12 won on time"]

1. d4 {[%clk 0:02:36.2]} 1... f5 {[%clk 0:02:58.6]} 2. Nc3 {[%clk 0:02:34.9]}
2... Nf6 {[%clk 0:02:58.5]} 3. Bg5 {[%clk 0:02:33.3]} 3... g6 {[%clk 0:02:58.1]}
4. e3 {[%clk 0:02:28.3]} 4... Bg7 {[%clk 0:02:57.8]} 5. h4 {[%clk 0:02:25.7]}
5... h6 {[%clk 0:02:55]} 6. Bf4 {[%clk 0:02:24.3]} 6... d6 {[%clk 0:02:53.2]} 7.
Nf3 {[%clk 0:02:23.2]} 7... Be6 {[%clk 0:02:52.8]} 8. Bd3 {[%clk 0:02:18.5]}
8... Bf7 {[%clk 0:02:50.3]} 9. Qe2 {[%clk 0:02:16.8]} 9... Nc6 {[%clk
0:02:46.6]} 10. O-O-O {[%clk 0:02:15.3]} 10... Qd7 {[%clk 0:02:46]} 11. e4
{[%clk 0:02:14.5]} 11... fxe4 {[%clk 0:02:42.9]} 12. Nxe4 {[%clk 0:02:15.4]}
12... Nd5 {[%clk 0:02:41.1]} 13. Bd2 {[%clk 0:02:05.9]} 13... O-O-O {[%clk
0:02:39.4]} 14. a3 {[%clk 0:01:59]} 14... e5 {[%clk 0:02:28.9]} 15. c4 {[%clk
0:01:53.5]} 15... Nb6 {[%clk 0:02:21.3]} 16. d5 {[%clk 0:01:43.5]} 16... Ne7
{[%clk 0:02:16.8]} 17. Kb1 {[%clk 0:01:36.5]} 17... c6 {[%clk 0:02:11.3]} 18.
dxc6 {[%clk 0:01:29.1]} 18... Qxc6 {[%clk 0:02:12.2]} 19. Bc3 {[%clk 0:01:23.3]}
19... Kb8 {[%clk 0:02:09.8]} 20. c5 {[%clk 0:01:20]} 20... Na4 {[%clk
0:01:32.3]} 21. Bb5 {[%clk 0:01:11.1]} 21... Nxc3+ {[%clk 0:01:26.2]} 22. bxc3
{[%clk 0:01:12]} 22... Qc8 {[%clk 0:01:19.9]} 23. Nxd6 {[%clk 0:01:03.4]} 23...
Rxd6 {[%clk 0:00:53.3]} 24. cxd6 {[%clk 0:01:01.9]} 24... Nd5 {[%clk 0:00:53.7]}
25. Rxd5 {[%clk 0:00:55.1]} 25... Bxd5 {[%clk 0:00:54.6]} 26. c4 {[%clk
0:00:49.9]} 26... Qf5+ {[%clk 0:00:46.2]} 27. Ka2 {[%clk 0:00:45.7]} 27... Be6
{[%clk 0:00:42.2]} 28. Re1 {[%clk 0:00:39.5]} 28... Rd8 {[%clk 0:00:35.7]} 29.
Qd2 {[%clk 0:00:26.3]} 29... e4 {[%clk 0:00:32.1]} 30. Nd4 {[%clk 0:00:27]}
30... Bxd4 {[%clk 0:00:32]} 31. Qxd4 {[%clk 0:00:26.5]} 31... Qxb5 {[%clk
0:00:32.1]} 32. Rxe4 {[%clk 0:00:26.5]} 32... Bg8 {[%clk 0:00:21.5]} 33. Re5
{[%clk 0:00:16.9]} 33... Qxc4+ {[%clk 0:00:20.3]} 34. Qxc4 {[%clk 0:00:16.7]}
34... Bxc4+ {[%clk 0:00:21.2]} 35. Kb2 {[%clk 0:00:17.6]} 35... Rxd6 {[%clk
0:00:21.6]} 36. Kc3 {[%clk 0:00:18.2]} 36... Bf7 {[%clk 0:00:18.5]} 37. Re7
{[%clk 0:00:17.9]} 37... Rf6 {[%clk 0:00:18.7]} 38. f3 {[%clk 0:00:17.3]} 38...
Bd5 {[%clk 0:00:18.1]} 39. Kd4 {[%clk 0:00:17.2]} 39... Bc6 {[%clk 0:00:18.4]}
40. Rh7 {[%clk 0:00:15.4]} 40... h5 {[%clk 0:00:18.3]} 41. Rg7 {[%clk
0:00:15.8]} 41... a6 {[%clk 0:00:18.2]} 42. Ke5 {[%clk 0:00:10.3]} 42... Rf5+
{[%clk 0:00:18.6]} 43. Ke6 {[%clk 0:00:09.3]} 43... Rf4 {[%clk 0:00:18.4]} 44.
Rxg6 {[%clk 0:00:07.5]} 44... Rxh4 {[%clk 0:00:18.6]} 45. Rg5 {[%clk 0:00:07.7]}
45... Rh1 {[%clk 0:00:16.2]} 46. f4 {[%clk 0:00:07.5]} 46... Rf1 {[%clk
0:00:15.6]} 47. Kd6 {[%clk 0:00:07.8]} 47... Rxf4 {[%clk 0:00:15.1]} 0-1

[Event "*** SCC Grand Prix: Titled Tuesday Blitz"]
[Site "Chess.com"]
[Date "2020.07.14"]
[Round "9"]
[White "MacDaddyMac"]
[Black "djano"]
[Result "0-1"]
[WhiteElo "2316"]
[BlackElo "2469"]
[TimeControl "180+1"]
[EndTime "11:47:47 PDT"]
[Termination "djano won on time"]

1. e4 {[%clk 0:03:00.9]} 1... e5 {[%clk 0:02:54.9]} 2. Nf3 {[%clk 0:03:00.7]}
2... Nc6 {[%clk 0:02:54.7]} 3. Bb5 {[%clk 0:03:01.2]} 3... a6 {[%clk 0:02:54.5]}
4. Ba4 {[%clk 0:03:00.4]} 4... Nf6 {[%clk 0:02:54.6]} 5. d3 {[%clk 0:02:59.9]}
5... d6 {[%clk 0:02:51.1]} 6. O-O {[%clk 0:02:53]} 6... g6 {[%clk 0:02:51.4]} 7.
h3 {[%clk 0:02:52]} 7... Bg7 {[%clk 0:02:51.5]} 8. Re1 {[%clk 0:02:51.5]} 8...
O-O {[%clk 0:02:51.6]} 9. c3 {[%clk 0:02:45.8]} 9... Bd7 {[%clk 0:02:50.8]} 10.
Nbd2 {[%clk 0:02:45.5]} 10... Qe8 {[%clk 0:02:43.8]} 11. Nf1 {[%clk 0:02:44.6]}
11... Nh5 {[%clk 0:02:42.8]} 12. d4 {[%clk 0:02:38]} 12... Nxd4 {[%clk
0:02:38.4]} 13. Bxd7 {[%clk 0:02:26]} 13... Nxf3+ {[%clk 0:02:37.8]} 14. Qxf3
{[%clk 0:02:26.9]} 14... Qxd7 {[%clk 0:02:38.4]} 15. Be3 {[%clk 0:02:23.1]}
15... b5 {[%clk 0:02:33.3]} 16. Rad1 {[%clk 0:02:22]} 16... f5 {[%clk
0:02:30.3]} 17. exf5 {[%clk 0:02:22.2]} 17... Qxf5 {[%clk 0:02:24.4]} 18. Qd5+
{[%clk 0:02:15.1]} 18... Qf7 {[%clk 0:02:24.4]} 19. Qc6 {[%clk 0:02:07.2]} 19...
Nf6 {[%clk 0:02:11.3]} 20. Rd2 {[%clk 0:02:01.3]} 20... Qd7 {[%clk 0:02:06.5]}
21. Qxd7 {[%clk 0:01:45.2]} 21... Nxd7 {[%clk 0:02:07.4]} 22. Red1 {[%clk
0:01:43.4]} 22... Nf6 {[%clk 0:02:06.4]} 23. Ng3 {[%clk 0:01:43.3]} 23... h5
{[%clk 0:02:05.1]} 24. f3 {[%clk 0:01:39.7]} 24... Kf7 {[%clk 0:02:04.9]} 25.
Bg5 {[%clk 0:01:37.5]} 25... Nh7 {[%clk 0:01:57.5]} 26. h4 {[%clk 0:01:27.1]}
26... Nxg5 {[%clk 0:01:55.8]} 27. hxg5 {[%clk 0:01:28]} 27... Ke6 {[%clk
0:01:51.5]} 28. Ne4 {[%clk 0:01:27.4]} 28... Rfd8 {[%clk 0:01:34.4]} 29. a3
{[%clk 0:01:10.8]} 29... Bf8 {[%clk 0:01:32.6]} 30. Nc5+ {[%clk 0:01:06.5]}
30... Kf5 {[%clk 0:01:21.5]} 31. Ne4 {[%clk 0:01:06.3]} 31... Be7 {[%clk
0:01:21.3]} 32. Rd5 {[%clk 0:00:39.5]} 32... Bxg5 {[%clk 0:01:13.9]} 33. a4
{[%clk 0:00:38.9]} 33... Be3+ {[%clk 0:01:06.9]} 34. Kf1 {[%clk 0:00:37.7]}
34... Rdb8 {[%clk 0:00:58]} 35. Ke2 {[%clk 0:00:28]} 35... Bh6 {[%clk
0:00:48.2]} 36. b4 {[%clk 0:00:13.6]} 36... Ke6 {[%clk 0:00:41.4]} 37. a5 {[%clk
0:00:06.3]} 37... Bf8 {[%clk 0:00:37.5]} 38. R1d3 {[%clk 0:00:06]} 38... Be7
{[%clk 0:00:37.8]} 39. Rd1 {[%clk 0:00:05.6]} 39... Rh8 {[%clk 0:00:37.2]} 40.
Kf2 {[%clk 0:00:04.7]} 40... h4 {[%clk 0:00:37.6]} 41. Kg1 {[%clk 0:00:03.4]}
41... g5 {[%clk 0:00:35.4]} 42. Kh2 {[%clk 0:00:03]} 42... Rag8 {[%clk
0:00:32.9]} 43. R5d3 {[%clk 0:00:02.1]} 43... g4 {[%clk 0:00:33]} 44. R1d2
{[%clk 0:00:01.1]} 44... h3 {[%clk 0:00:26.5]} 45. gxh3 {[%clk 0:00:01.1]} 45...
Rxh3+ {[%clk 0:00:23.8]} 46. Kg2 {[%clk 0:00:02]} 46... Rh5 {[%clk 0:00:21.9]}
47. Kf2 {[%clk 0:00:02.2]} 47... Rh2+ {[%clk 0:00:20.7]} 48. Ke3 {[%clk
0:00:02.7]} 48... Rxd2 {[%clk 0:00:20.5]} 49. Rxd2 {[%clk 0:00:03.6]} 49... g3
{[%clk 0:00:18.6]} 50. Rg2 {[%clk 0:00:03]} 50... Bh4 {[%clk 0:00:18.8]} 51. f4
{[%clk 0:00:02.3]} 51... Rg4 {[%clk 0:00:13.6]} 52. fxe5 {[%clk 0:00:01.7]}
52... Kxe5 {[%clk 0:00:14.5]} 0-1

[Event "*** SCC Grand Prix: Titled Tuesday Blitz"]
[Site "Chess.com"]
[Date "2020.07.14"]
[Round "9"]
[White "NotFischer"]
[Black "ElCoachRene"]
[Result "1/2-1/2"]
[WhiteElo "2134"]
[BlackElo "2183"]
[TimeControl "180+1"]
[EndTime "11:47:47 PDT"]
[Termination "Game drawn by repetition"]

1. e4 {[%clk 0:03:00.9]} 1... Nc6 {[%clk 0:02:58.8]} 2. d4 {[%clk 0:03:00.3]}
2... d5 {[%clk 0:02:59.3]} 3. e5 {[%clk 0:02:59.7]} 3... f6 {[%clk 0:02:59.7]}
4. Nf3 {[%clk 0:02:54.7]} 4... Bg4 {[%clk 0:02:58.1]} 5. Bb5 {[%clk 0:02:53.7]}
5... Qd7 {[%clk 0:02:57.1]} 6. c4 {[%clk 0:02:37.3]} 6... a6 {[%clk 0:02:56.2]}
7. cxd5 {[%clk 0:02:32.1]} 7... axb5 {[%clk 0:02:44.5]} 8. dxc6 {[%clk 0:02:32]}
8... bxc6 {[%clk 0:02:44.9]} 9. Nc3 {[%clk 0:02:22]} 9... fxe5 {[%clk
0:02:37.6]} 10. Nxe5 {[%clk 0:02:11.6]} 10... Bxd1 {[%clk 0:02:32.5]} 11. Nxd7
{[%clk 0:02:11.2]} 11... Kxd7 {[%clk 0:02:24]} 12. Kxd1 {[%clk 0:02:07.7]} 12...
Nf6 {[%clk 0:02:22.4]} 13. Bf4 {[%clk 0:02:00.6]} 13... e6 {[%clk 0:02:20.7]}
14. a3 {[%clk 0:01:49.1]} 14... Bd6 {[%clk 0:02:20.9]} 15. Bg3 {[%clk
0:01:46.9]} 15... b4 {[%clk 0:02:18.1]} 16. Ne2 {[%clk 0:01:36.4]} 16... bxa3
{[%clk 0:02:17.4]} 17. bxa3 {[%clk 0:01:35.9]} 17... Rxa3 {[%clk 0:02:16.2]} 18.
Rxa3 {[%clk 0:01:33.4]} 18... Bxa3 {[%clk 0:02:17.1]} 19. f3 {[%clk 0:01:29.4]}
19... Rb8 {[%clk 0:02:15.7]} 20. Kc2 {[%clk 0:01:22.5]} 20... Rb2+ {[%clk
0:02:14.2]} 21. Kd3 {[%clk 0:01:22.9]} 21... Nd5 {[%clk 0:02:10.4]} 22. Ra1
{[%clk 0:01:00.9]} 22... Nb4+ {[%clk 0:00:44.3]} 23. Kc4 {[%clk 0:01:01]} 23...
Rc2+ {[%clk 0:00:33.5]} 24. Kb3 {[%clk 0:00:55.9]} 24... Rxe2 {[%clk 0:00:31.5]}
25. Rxa3 {[%clk 0:00:52.4]} 25... Nc2 {[%clk 0:00:22.7]} 26. Ra7 {[%clk
0:00:41.9]} 26... Nxd4+ {[%clk 0:00:21.8]} 27. Kc4 {[%clk 0:00:42.3]} 27... Nb5
{[%clk 0:00:21.2]} 28. Ra8 {[%clk 0:00:41.4]} 28... Rxg2 {[%clk 0:00:20.4]} 29.
Rg8 {[%clk 0:00:41.4]} 29... Nd6+ {[%clk 0:00:18.5]} 30. Kd3 {[%clk 0:00:40.7]}
30... Nf5 {[%clk 0:00:18.1]} 31. Rh8 {[%clk 0:00:36]} 31... Nxg3 {[%clk
0:00:17.7]} 32. hxg3 {[%clk 0:00:35.4]} 32... Rxg3 {[%clk 0:00:17.9]} 33. Rxh7
{[%clk 0:00:36.3]} 33... Rxf3+ {[%clk 0:00:17.9]} 34. Ke4 {[%clk 0:00:37.2]}
34... Rf7 {[%clk 0:00:17.5]} 35. Ke5 {[%clk 0:00:36.1]} 35... Ke7 {[%clk
0:00:14.6]} 36. Rh8 {[%clk 0:00:34.9]} 36... Rf5+ {[%clk 0:00:13.5]} 37. Ke4
{[%clk 0:00:34.4]} 37... Rd5 {[%clk 0:00:10.7]} 38. Rg8 {[%clk 0:00:34.3]} 38...
Kf7 {[%clk 0:00:10.6]} 39. Rc8 {[%clk 0:00:34.1]} 39... Rd7 {[%clk 0:00:10.5]}
40. Ke5 {[%clk 0:00:34.6]} 40... Ke7 {[%clk 0:00:09.3]} 41. Rg8 {[%clk
0:00:34.5]} 41... Kf7 {[%clk 0:00:09.5]} 42. Rc8 {[%clk 0:00:34.4]} 42... g5
{[%clk 0:00:09.4]} 43. Rh8 {[%clk 0:00:33.9]} 43... Kg7 {[%clk 0:00:09.6]} 44.
Rh3 {[%clk 0:00:31.9]} 44... Rd5+ {[%clk 0:00:09.1]} 45. Kxe6 {[%clk 0:00:31.8]}
45... Kg6 {[%clk 0:00:09.6]} 46. Rc3 {[%clk 0:00:31]} 46... Rd6+ {[%clk
0:00:08.4]} 47. Ke5 {[%clk 0:00:31.1]} 47... g4 {[%clk 0:00:08.3]} 48. Kf4
{[%clk 0:00:31.2]} 48... Rd4+ {[%clk 0:00:07.6]} 49. Kg3 {[%clk 0:00:31.5]}
49... Kg5 {[%clk 0:00:07.6]} 50. Rc5+ {[%clk 0:00:31.3]} 50... Rd5 {[%clk
0:00:08]} 51. Rxc6 {[%clk 0:00:31.3]} 51... Rd3+ {[%clk 0:00:07.3]} 52. Kg2
{[%clk 0:00:31.1]} 52... Rd7 {[%clk 0:00:07.2]} 53. Rc5+ {[%clk 0:00:29.8]}
53... Kh4 {[%clk 0:00:06.8]} 54. Rc4 {[%clk 0:00:29.5]} 54... Rd2+ {[%clk
0:00:06.5]} 55. Kg1 {[%clk 0:00:29.9]} 55... Rd7 {[%clk 0:00:06.4]} 56. Kg2
{[%clk 0:00:29.3]} 56... Rd2+ {[%clk 0:00:05.5]} 57. Kg1 {[%clk 0:00:29.8]}
57... Kg3 {[%clk 0:00:05.7]} 58. Rc3+ {[%clk 0:00:28.2]} 58... Kh4 {[%clk
0:00:05.8]} 59. Rxc7 {[%clk 0:00:27.7]} 59... g3 {[%clk 0:00:05.9]} 60. Rh7+
{[%clk 0:00:26.7]} 60... Kg4 {[%clk 0:00:06]} 61. Rg7+ {[%clk 0:00:27]} 61...
Kh3 {[%clk 0:00:06.5]} 62. Rh7+ {[%clk 0:00:27.2]} 62... Kg4 {[%clk 0:00:07]}
63. Rg7+ {[%clk 0:00:27.7]} 63... Kf3 {[%clk 0:00:07.5]} 64. Rf7+ {[%clk
0:00:28.2]} 64... Kg4 {[%clk 0:00:08]} 65. Rg7+ {[%clk 0:00:28.6]} 1/2-1/2

[Event "*** SCC Grand Prix: Titled Tuesday Blitz"]
[Site "Chess.com"]
[Date "2020.07.14"]
[Round "9"]
[White "Alindsay211"]
[Black "Tashik"]
[Result "1-0"]
[WhiteElo "2313"]
[BlackElo "2388"]
[TimeControl "180+1"]
[EndTime "11:47:48 PDT"]
[Termination "Alindsay211 won on time"]

1. e4 {[%clk 0:03:00.9]} 1... e5 {[%clk 0:02:59.3]} 2. Nf3 {[%clk 0:03:00.9]}
2... Nc6 {[%clk 0:02:59.9]} 3. Bc4 {[%clk 0:03:00.5]} 3... Bc5 {[%clk
0:02:59.2]} 4. d4 {[%clk 0:03:00.2]} 4... Bxd4 {[%clk 0:02:58.1]} 5. Nxd4 {[%clk
0:02:55.5]} 5... Nxd4 {[%clk 0:02:59]} 6. Be3 {[%clk 0:02:53.3]} 6... Ne6 {[%clk
0:02:42.1]} 7. Nc3 {[%clk 0:02:51.7]} 7... Nf6 {[%clk 0:02:23.7]} 8. f3 {[%clk
0:02:29.6]} 8... d6 {[%clk 0:02:11.9]} 9. Qd2 {[%clk 0:02:28.9]} 9... a6 {[%clk
0:01:48.2]} 10. a4 {[%clk 0:02:28.5]} 10... Bd7 {[%clk 0:01:46.5]} 11. O-O
{[%clk 0:02:25.8]} 11... O-O {[%clk 0:01:46.1]} 12. Kh1 {[%clk 0:02:23.4]} 12...
Nh5 {[%clk 0:01:34.7]} 13. Nd5 {[%clk 0:01:52.2]} 13... b5 {[%clk 0:01:27]} 14.
axb5 {[%clk 0:01:19.9]} 14... axb5 {[%clk 0:01:27.9]} 15. Bb3 {[%clk 0:01:20.3]}
15... Rxa1 {[%clk 0:00:59.2]} 16. Rxa1 {[%clk 0:01:21.2]} 16... Nc5 {[%clk
0:00:53.3]} 17. Qc3 {[%clk 0:01:08.3]} 17... Nxb3 {[%clk 0:00:44.9]} 18. Qxb3
{[%clk 0:01:09.2]} 18... c6 {[%clk 0:00:41.9]} 19. Nc3 {[%clk 0:01:06.7]} 19...
Nf4 {[%clk 0:00:23]} 20. Bxf4 {[%clk 0:01:05.6]} 20... exf4 {[%clk 0:00:22.7]}
21. Qb4 {[%clk 0:01:05.2]} 21... c5 {[%clk 0:00:21.6]} 22. Qa5 {[%clk
0:01:05.5]} 22... Qxa5 {[%clk 0:00:17.2]} 23. Rxa5 {[%clk 0:01:06.4]} 23... b4
{[%clk 0:00:16.7]} 24. Nd5 {[%clk 0:01:04.9]} 24... Re8 {[%clk 0:00:12.8]} 25.
Nxf4 {[%clk 0:01:03.9]} 25... g5 {[%clk 0:00:11.9]} 26. Nd5 {[%clk 0:01:03.7]}
26... Kg7 {[%clk 0:00:12.1]} 27. Kg1 {[%clk 0:01:02.2]} 27... Kg6 {[%clk
0:00:10.9]} 28. Kf2 {[%clk 0:01:02.3]} 28... f5 {[%clk 0:00:09.4]} 29. exf5+
{[%clk 0:01:02.2]} 29... Bxf5 {[%clk 0:00:09]} 30. Ne3 {[%clk 0:01:03.1]} 30...
Bd7 {[%clk 0:00:07.5]} 31. Ra6 {[%clk 0:01:03.5]} 31... Re6 {[%clk 0:00:07.7]}
32. c3 {[%clk 0:01:03]} 32... d5 {[%clk 0:00:07]} 33. Rxe6+ {[%clk 0:00:57.4]}
33... Bxe6 {[%clk 0:00:07.9]} 34. cxb4 {[%clk 0:00:57.2]} 34... cxb4 {[%clk
0:00:08.8]} 35. Nc2 {[%clk 0:00:57.5]} 35... b3 {[%clk 0:00:05]} 36. Nd4 {[%clk
0:00:57.8]} 36... Kf6 {[%clk 0:00:04.3]} 37. Ke3 {[%clk 0:00:56.4]} 37... Ke5
{[%clk 0:00:04.3]} 38. g3 {[%clk 0:00:56.5]} 38... Bf7 {[%clk 0:00:03.9]} 39.
f4+ {[%clk 0:00:56.8]} 39... gxf4+ {[%clk 0:00:03.8]} 40. gxf4+ {[%clk
0:00:57.7]} 40... Kd6 {[%clk 0:00:04.3]} 41. Nxb3 {[%clk 0:00:58.1]} 41... Kc6
{[%clk 0:00:03.8]} 42. Nd4+ {[%clk 0:00:58.6]} 42... Kc5 {[%clk 0:00:03.9]} 43.
h4 {[%clk 0:00:55.4]} 43... Kc4 {[%clk 0:00:04.2]} 44. f5 {[%clk 0:00:54.6]}
44... h5 {[%clk 0:00:03.7]} 45. f6 {[%clk 0:00:54.2]} 45... Bg6 {[%clk
0:00:03.8]} 46. Ne6 {[%clk 0:00:51.7]} 46... Kb3 {[%clk 0:00:03.1]} 47. Kd4
{[%clk 0:00:49]} 47... Kxb2 {[%clk 0:00:02.4]} 48. Ng5 {[%clk 0:00:48.5]} 48...
Kc2 {[%clk 0:00:02.4]} 49. Kxd5 {[%clk 0:00:44.2]} 49... Kd3 {[%clk 0:00:02.2]}
50. Ke5 {[%clk 0:00:43.8]} 50... Ke3 {[%clk 0:00:02.1]} 51. Ne6 {[%clk
0:00:14.7]} 51... Kf3 {[%clk 0:00:01.1]} 52. Nf4 {[%clk 0:00:14.4]} 1-0

[Event "*** SCC Grand Prix: Titled Tuesday Blitz"]
[Site "Chess.com"]
[Date "2020.07.14"]
[Round "9"]
[White "HanSchut"]
[Black "rugbyclub"]
[Result "0-1"]
[WhiteElo "2294"]
[BlackElo "2121"]
[TimeControl "180+1"]
[EndTime "11:47:50 PDT"]
[Termination "rugbyclub won by resignation"]

1. e4 {[%clk 0:03:00.9]} 1... c5 {[%clk 0:03:00]} 2. Nf3 {[%clk 0:03:00.9]} 2...
e6 {[%clk 0:03:00.3]} 3. c4 {[%clk 0:03:00.9]} 3... d6 {[%clk 0:02:56.3]} 4. d4
{[%clk 0:03:00.7]} 4... cxd4 {[%clk 0:02:56.3]} 5. Nxd4 {[%clk 0:03:01.6]} 5...
Nf6 {[%clk 0:02:56.8]} 6. Nc3 {[%clk 0:03:01.6]} 6... b6 {[%clk 0:02:57.2]} 7.
Be3 {[%clk 0:03:01.2]} 7... Bb7 {[%clk 0:02:57.5]} 8. f3 {[%clk 0:03:01.9]} 8...
a6 {[%clk 0:02:57.3]} 9. Qd2 {[%clk 0:03:02.4]} 9... Nbd7 {[%clk 0:02:57.8]} 10.
Rc1 {[%clk 0:03:02.8]} 10... Qc7 {[%clk 0:02:58.4]} 11. Be2 {[%clk 0:03:03.3]}
11... Be7 {[%clk 0:02:58.9]} 12. O-O {[%clk 0:03:03.7]} 12... O-O {[%clk
0:02:59.4]} 13. Rfd1 {[%clk 0:03:04.3]} 13... Rfe8 {[%clk 0:02:59.5]} 14. Bf1
{[%clk 0:03:04.8]} 14... Rac8 {[%clk 0:02:59.5]} 15. Qf2 {[%clk 0:03:05.3]}
15... Bf8 {[%clk 0:02:59]} 16. Kh1 {[%clk 0:03:05.7]} 16... Qb8 {[%clk
0:02:52.3]} 17. b4 {[%clk 0:03:01.1]} 17... d5 {[%clk 0:02:50.5]} 18. cxd5
{[%clk 0:02:57.8]} 18... exd5 {[%clk 0:02:50.5]} 19. exd5 {[%clk 0:02:58]} 19...
Bxb4 {[%clk 0:02:49]} 20. Ne4 {[%clk 0:02:37.7]} 20... Rxc1 {[%clk 0:02:42.1]}
21. Rxc1 {[%clk 0:02:34]} 21... Nxd5 {[%clk 0:02:41.3]} 22. Nf5 {[%clk 0:02:30]}
22... Nxe3 {[%clk 0:02:36.8]} 23. Qxe3 {[%clk 0:02:29.7]} 23... Bxe4 {[%clk
0:02:05.3]} 24. fxe4 {[%clk 0:02:16.2]} 24... Bf8 {[%clk 0:01:41.9]} 25. Bc4
{[%clk 0:02:08.2]} 25... Qe5 {[%clk 0:01:35]} 26. Qg5 {[%clk 0:01:42.7]} 26...
Kh8 {[%clk 0:01:18.5]} 27. Bxf7 {[%clk 0:01:38.3]} 27... Rb8 {[%clk 0:01:11.9]}
28. Bd5 {[%clk 0:01:29.6]} 28... Nf6 {[%clk 0:01:07.3]} 29. Qg3 {[%clk
0:01:23.9]} 29... Qxg3 {[%clk 0:01:03.4]} 30. Nxg3 {[%clk 0:01:18.2]} 30... Nxd5
{[%clk 0:01:03.2]} 31. exd5 {[%clk 0:01:18.7]} 31... Rd8 {[%clk 0:01:03.8]} 32.
Rd1 {[%clk 0:01:18.4]} 32... Bd6 {[%clk 0:00:58.9]} 33. Ne4 {[%clk 0:01:16.9]}
33... Kg8 {[%clk 0:00:58.2]} 34. g3 {[%clk 0:01:14]} 34... Be5 {[%clk 0:00:57]}
35. Kg2 {[%clk 0:01:11.6]} 35... Kf7 {[%clk 0:00:57.1]} 36. Kf3 {[%clk
0:01:12.3]} 36... Ke7 {[%clk 0:00:55]} 37. Nf2 {[%clk 0:00:55.3]} 37... Bf6
{[%clk 0:00:54.3]} 38. Ke4 {[%clk 0:00:50.5]} 38... Kd6 {[%clk 0:00:53.5]} 39.
Ng4 {[%clk 0:00:40.5]} 39... Re8+ {[%clk 0:00:53.6]} 40. Kf3 {[%clk 0:00:35]}
40... Rc8 {[%clk 0:00:44.5]} 41. Ne3 {[%clk 0:00:31.9]} 41... Rc3 {[%clk
0:00:42.5]} 42. Ke4 {[%clk 0:00:32.5]} 42... Ra3 {[%clk 0:00:40.7]} 43. Nf5+
{[%clk 0:00:31.8]} 43... Kd7 {[%clk 0:00:39.4]} 44. Rd2 {[%clk 0:00:28.4]} 44...
Ra4+ {[%clk 0:00:38]} 45. Kf3 {[%clk 0:00:28.3]} 45... g6 {[%clk 0:00:37.6]} 46.
Ne3 {[%clk 0:00:25.2]} 46... Bg5 {[%clk 0:00:32.8]} 47. h4 {[%clk 0:00:17.6]}
47... Bh6 {[%clk 0:00:28.9]} 48. Re2 {[%clk 0:00:14.4]} 48... Ra3 {[%clk
0:00:27.6]} 49. Ke4 {[%clk 0:00:12.8]} 49... Bxe3 {[%clk 0:00:26.8]} 50. Rxe3
{[%clk 0:00:13.7]} 50... Rxe3+ {[%clk 0:00:25.5]} 51. Kxe3 {[%clk 0:00:14.6]}
51... Kd6 {[%clk 0:00:25.9]} 52. Kd4 {[%clk 0:00:14.4]} 52... b5 {[%clk
0:00:26.3]} 53. a3 {[%clk 0:00:13.9]} 53... h5 {[%clk 0:00:23.9]} 54. Ke4 {[%clk
0:00:13.6]} 54... a5 {[%clk 0:00:23.4]} 55. Kd4 {[%clk 0:00:14.4]} 55... b4
{[%clk 0:00:23.6]} 56. axb4 {[%clk 0:00:15.2]} 56... axb4 {[%clk 0:00:23.8]} 57.
Kc4 {[%clk 0:00:16.1]} 57... b3 {[%clk 0:00:24]} 58. Kc3 {[%clk 0:00:16.7]}
58... Kxd5 {[%clk 0:00:24.6]} 0-1

[Event "*** SCC Grand Prix: Titled Tuesday Blitz"]
[Site "Chess.com"]
[Date "2020.07.14"]
[Round "9"]
[White "DariaVoit"]
[Black "XDPS"]
[Result "1-0"]
[WhiteElo "2516"]
[BlackElo "2681"]
[TimeControl "180+1"]
[EndTime "11:47:52 PDT"]
[Termination "DariaVoit won on time"]

1. d4 {[%clk 0:03:00.9]} 1... d5 {[%clk 0:02:51.6]} 2. Nf3 {[%clk 0:03:00.5]}
2... Nf6 {[%clk 0:02:51]} 3. c4 {[%clk 0:03:00.8]} 3... e6 {[%clk 0:02:50.2]} 4.
g3 {[%clk 0:03:00.6]} 4... g6 {[%clk 0:02:33.3]} 5. Bg2 {[%clk 0:02:59]} 5...
Bg7 {[%clk 0:02:33.6]} 6. O-O {[%clk 0:02:58.6]} 6... O-O {[%clk 0:02:33.8]} 7.
Qc2 {[%clk 0:02:55.5]} 7... c6 {[%clk 0:02:33.2]} 8. b4 {[%clk 0:02:43.9]} 8...
b6 {[%clk 0:02:29.8]} 9. Bb2 {[%clk 0:02:40]} 9... Bb7 {[%clk 0:02:28.5]} 10.
Nbd2 {[%clk 0:02:37.7]} 10... Nbd7 {[%clk 0:02:27.8]} 11. Rfd1 {[%clk
0:02:37.2]} 11... Rc8 {[%clk 0:02:26.6]} 12. c5 {[%clk 0:02:29.6]} 12... Qc7
{[%clk 0:02:07.8]} 13. Rdc1 {[%clk 0:02:10.1]} 13... Rfe8 {[%clk 0:02:06.3]} 14.
Bh3 {[%clk 0:02:05.9]} 14... Qb8 {[%clk 0:01:57]} 15. Ne1 {[%clk 0:01:47.2]}
15... Ba6 {[%clk 0:01:51.3]} 16. Nd3 {[%clk 0:01:42.4]} 16... Rc7 {[%clk
0:01:35]} 17. f4 {[%clk 0:01:40.5]} 17... Ne4 {[%clk 0:01:15.4]} 18. Nxe4 {[%clk
0:01:32]} 18... dxe4 {[%clk 0:01:16.3]} 19. Ne5 {[%clk 0:01:30.5]} 19... bxc5
{[%clk 0:01:00.7]} 20. bxc5 {[%clk 0:01:25.9]} 20... Nxe5 {[%clk 0:00:50.5]} 21.
fxe5 {[%clk 0:01:24.7]} 21... Rb7 {[%clk 0:00:48.2]} 22. Bc3 {[%clk 0:01:22.6]}
22... Bc4 {[%clk 0:00:47.6]} 23. Bg2 {[%clk 0:01:16.1]} 23... Bd5 {[%clk
0:00:21]} 24. Bxe4 {[%clk 0:01:03.5]} 24... Qd8 {[%clk 0:00:20.8]} 25. Rcb1
{[%clk 0:00:52.3]} 25... Rxb1+ {[%clk 0:00:20.4]} 26. Rxb1 {[%clk 0:00:52.5]}
26... Qd7 {[%clk 0:00:20.6]} 27. e3 {[%clk 0:00:40]} 27... Bh6 {[%clk 0:00:20]}
28. Re1 {[%clk 0:00:23.7]} 28... Rb8 {[%clk 0:00:18.6]} 29. Qg2 {[%clk
0:00:23.8]} 29... Qb7 {[%clk 0:00:14.6]} 30. Bxd5 {[%clk 0:00:23.6]} 30... cxd5
{[%clk 0:00:15.5]} 31. Qc2 {[%clk 0:00:22.7]} 31... Qb5 {[%clk 0:00:14.6]} 32.
Bd2 {[%clk 0:00:20.6]} 32... Bf8 {[%clk 0:00:12.9]} 33. Kf2 {[%clk 0:00:20.5]}
33... Bg7 {[%clk 0:00:10.3]} 34. Rc1 {[%clk 0:00:20.5]} 34... Qc6 {[%clk
0:00:10.2]} 35. Rb1 {[%clk 0:00:20.2]} 35... Rc8 {[%clk 0:00:10.7]} 36. Qb3
{[%clk 0:00:19.2]} 36... Qe8 {[%clk 0:00:11]} 37. Qb5 {[%clk 0:00:18.2]} 37...
Qf8 {[%clk 0:00:11.3]} 38. Qd7 {[%clk 0:00:18.2]} 38... Rd8 {[%clk 0:00:10.8]}
39. Qc7 {[%clk 0:00:17.9]} 39... Rc8 {[%clk 0:00:10.9]} 40. Qd6 {[%clk
0:00:18.3]} 40... Qe8 {[%clk 0:00:10.3]} 41. Rb7 {[%clk 0:00:18.2]} 41... Bf8
{[%clk 0:00:09.6]} 42. Qd7 {[%clk 0:00:17.9]} 42... Qxd7 {[%clk 0:00:04.4]} 43.
Rxd7 {[%clk 0:00:18.8]} 43... a6 {[%clk 0:00:04.9]} 44. Ra7 {[%clk 0:00:17.6]}
44... Rc6 {[%clk 0:00:05.4]} 45. Ke2 {[%clk 0:00:17.8]} 45... Kg7 {[%clk
0:00:05.6]} 46. Kd3 {[%clk 0:00:17.9]} 46... g5 {[%clk 0:00:06]} 47. e4 {[%clk
0:00:17.5]} 47... dxe4+ {[%clk 0:00:05.1]} 48. Kxe4 {[%clk 0:00:17.7]} 48... h6
{[%clk 0:00:05.9]} 49. Ba5 {[%clk 0:00:17.4]} 49... Kg6 {[%clk 0:00:04.9]} 50.
Bb6 {[%clk 0:00:17.7]} 50... f5+ {[%clk 0:00:03.7]} 51. exf6 {[%clk 0:00:17.5]}
51... Kxf6 {[%clk 0:00:03.6]} 52. Rxa6 {[%clk 0:00:18.1]} 52... Bg7 {[%clk
0:00:03.7]} 53. Bd8+ {[%clk 0:00:14.4]} 1-0